bitfinex/quotes_ETHUSD_20240709
["timestamp","ask_amount","ask_price","bid_price","bid_amount"]
[1720526356892,0.46126815,3093.6,3093.0,1.166]
[1720526357966,2.4727,3093.5,3093.0,1.166]
[1720526358166,0.79192951,3093.4,3093.0,1.166]
[1720526359384,0.79193618,3093.4,3093.0,1.166]
[1720526359584,0.29339682,3093.4,3093.0,1.166]
[1720526359764,0.46126815,3093.6,3093.0,3.4708]
[1720526360095,0.46126815,3093.6,3093.2,1.166]
[1720526362711,0.46126815,3093.6,3093.0,1.166]
[1720526365188,2.4232,3093.5,3093.0,1.166]
[1720526365386,0.78696199,3093.4,3093.0,1.166]
[1720526366281,0.78696005,3093.4,3093.0,1.166]
[1720526369619,0.28844682,3093.4,3093.0,1.166]
[1720526369790,0.49852519,3093.4,3093.0,1.166]
[1720526370181,0.33839515,3093.5,3093.0,1.166]
[1720526379644,0.33839515,3093.5,3092.4,2.4974]
[1720526379844,0.55,3093.4,3092.9,1.166]
[1720526382645,2.4428,3093.3,3092.6,1.166]
[1720526382818,1.04853046,3093.2,3092.6,1.166]
[1720526383531,0.33840745,3093.1,3092.8,1.166]
[1720526385609,2.4366,3093.0,3092.8,1.166]
[1720526385945,2.4366,3093.0,3092.4,1.166]
[1720526385946,1.04858638,3092.9,3092.4,1.166]
[1720526386334,0.49858638,3092.9,3092.4,1.166]
[1720526386642,2.4366,3093.0,3092.7,1.166]
[1720526386860,0.49874902,3092.9,3092.7,1.166]
[1720526387467,0.33840745,3093.1,3092.7,1.166]
[1720526387674,0.83715647,3093.1,3092.7,1.166]
[1720526388539,0.83715647,3093.1,3092.1,2.361]
[1720526388730,1.46453212,3093.1,3092.6,1.166]
[1720526389873,0.72088571,3093.0,3092.6,1.166]
[1720526390068,1.68666881,3093.1,3092.6,1.166]
[1720526390245,1.68666881,3093.1,3092.4,1.166]
[1720526390246,0.72088516,3093.0,3092.4,1.166]
[1720526390447,2.4812,3092.9,3092.4,1.166]
[1720526390651,0.72088516,3092.8,3092.4,1.166]
[1720526393778,0.72091139,3092.8,3091.6,2.4767]
[1720526394087,1.05800369,3092.8,3092.4,1.166]
[1720526394658,0.3370752,3092.8,3092.4,1.166]
[1720526394848,1.05800234,3092.8,3092.4,1.166]
[1720526395041,0.35392023,3092.7,3092.4,1.166]
[1720526395288,0.35392023,3092.7,3092.3,1.166]
[1720526396576,2.8243,3092.6,3091.2,2.388]
[1720526396764,0.72092714,3092.5,3091.9,1.166]
[1720526397077,0.55,3092.4,3091.9,1.166]
[1720526397578,0.55,3092.4,3091.7,2.3559]
[1720526397579,0.55,3092.4,3092.1,1.166]
[1720526398466,0.55,3092.4,3091.9,1.166]
[1720526398774,0.90454433,3092.4,3091.9,1.166]
[1720526399676,2.2965,3092.3,3091.1,3.0681927]
[1720526399882,0.76938927,3092.2,3091.3,1.166]
[1720526400174,0.55,3092.1,3091.3,1.166]
[1720526400385,0.04824599,3092.0,3091.3,1.166]
[1720526400541,0.04824599,3092.0,3091.1,2.4510927]
[1720526400746,2.35,3091.9,3091.1,0.0681927]
[1720526400947,1.00941425,3091.8,3091.1,0.0681927]
[1720526401167,0.59824599,3091.7,3091.1,0.0681927]
[1720526402160,0.55,3091.7,3091.1,1.2341927]
[1720526402371,0.96116826,3091.8,3091.5,1.166]
[1720526402372,0.72134366,3091.8,3091.5,1.166]
[1720526402579,0.72134366,3091.8,3091.1,2.4973927]
[1720526402580,0.72134366,3091.8,3091.7,1.166]
[1720526402744,2.2525,3092.4,3091.7,1.166]
[1720526402745,0.72133303,3092.1,3091.7,1.166]
[1720526403081,0.72133303,3092.1,3091.2,0.06469562]
[1720526403082,5.51159397,3092.4,3092.0,1.166]
[1720526403285,0.72124923,3092.3,3092.0,1.166]
[1720526403443,3.72124923,3092.3,3092.0,1.166]
[1720526403648,0.72124923,3092.2,3092.0,1.166]
[1720526403875,0.72124398,3092.2,3092.0,1.166]
[1720526404085,0.72124398,3092.2,3091.8,1.166]
[1720526404648,0.72124398,3092.3,3092.0,1.166]
[1720526404852,0.33843974,3092.5,3092.0,1.166]
[1720526405049,0.33843974,3092.5,3092.1,0.06468255]
[1720526405276,0.33843974,3092.5,3092.4,1.166]
[1720526406077,0.33843974,3092.5,3092.2,1.166]
[1720526406407,1.166,3092.4,3091.1,2.3598927]
[1720526406700,0.43910996,3092.3,3091.1,2.3598927]
[1720526407016,1.11177315,3092.3,3091.1,2.3598927]
[1720526407653,0.72090918,3092.3,3091.3,2.802]
[1720526407873,0.72090918,3092.3,3091.4,2.4796]
[1720526408184,0.72090918,3092.3,3091.8,2.4796]
[1720526408350,0.33843974,3092.5,3091.8,2.4796]
[1720526408751,0.33843974,3092.5,3091.8,3.07243199]
[1720526409074,0.33843974,3092.5,3092.2,2.339]
[1720526409283,0.72100817,3093.1,3092.3,0.0646672]
[1720526409591,0.33843618,3092.9,3092.2,2.339]
[1720526409764,0.33843618,3092.9,3092.3,0.5141]
[1720526410564,0.33843618,3092.9,3092.2,2.339]
[1720526411301,0.33843618,3092.9,3091.8,2.339]
[1720526412200,1.05944435,3092.9,3091.8,2.339]
[1720526412404,0.33843618,3092.9,3091.9,0.06467079]
[1720526412565,1.05931449,3092.9,3091.9,0.06467079]
[1720526412767,0.33843618,3092.9,3092.1,2.339]
[1720526413501,2.3802,3092.8,3091.8,2.4649]
[1720526413668,0.72099891,3092.7,3091.8,2.4649]
[1720526414510,0.33843618,3092.9,3091.8,2.4649]
[1720526414671,0.33843618,3092.9,3092.1,2.802]
[1720526415176,0.33843618,3092.9,3092.1,2.86666339]
[1720526416297,0.72077797,3093.1,3092.1,2.86666339]
[1720526416499,0.72077797,3093.1,3092.2,2.3901]
[1720526416704,0.72077797,3093.4,3092.3,0.06466329]
[1720526416899,1.6041378,3093.3,3092.3,0.06466329]
[1720526417120,0.72077797,3093.2,3092.2,2.3901]
[1720526418018,0.72077797,3093.2,3092.3,0.06466331]
[1720526418170,0.72077797,3093.2,3092.3,0.0646633]
[1720526419122,1.0541378,3093.3,3092.4,2.4951]
[1720526419320,0.72073113,3093.3,3092.5,0.25597633]
[1720526419522,0.72073113,3093.3,3092.5,0.32063711]
[1720526420313,0.33843816,3093.2,3092.5,3.12263711]
[1720526420615,0.33843816,3093.2,3092.6,0.33014321]
[1720526420821,0.33843816,3093.2,3092.7,0.06465715]
[1720526423403,0.33843816,3093.2,3092.6,0.33014321]
[1720526423592,0.33843816,3093.2,3092.4,2.4951]
[1720526423793,2.51184599,3093.1,3092.1,5.14]
[1720526423986,0.72063731,3093.0,3092.1,5.14]
[1720526425716,2.4636,3093.1,3092.1,5.14]
[1720526425908,0.7208687,3093.0,3092.2,0.514]
[1720526429040,0.55,3092.9,3092.1,5.14]
[1720526429241,0.72090921,3093.0,3092.1,5.14]
[1720526430514,0.72090921,3093.0,3092.2,2.2983]
[1720526430840,0.72090921,3093.0,3091.6,3.0]
[1720526430841,0.33843816,3093.2,3092.5,2.802]
[1720526431040,0.33843816,3093.2,3092.6,0.57468757]
[1720526431223,0.72090921,3093.7,3092.6,0.57468757]
[1720526431422,0.33845633,3093.5,3092.6,0.57468757]
[1720526431734,0.33845633,3093.5,3091.9,3.23424]
[1720526431735,2.3287,3093.4,3091.9,2.802]
[1720526431940,0.72090921,3093.3,3091.9,2.802]
[1720526432533,2.37694599,3093.4,3091.9,2.802]
[1720526432709,0.55,3093.3,3091.9,2.802]
[1720526432904,0.5926946,3093.2,3091.9,2.802]
[1720526433106,0.5926946,3093.2,3092.0,2.3478]
[1720526433308,0.64094059,3093.2,3092.0,2.3478]
[1720526434747,0.5926946,3093.2,3092.3,2.802]
[1720526434910,0.5926946,3093.2,3092.4,2.4949]
[1720526435498,2.3287,3093.4,3092.4,3.08925418]
[1720526435704,0.33845633,3093.5,3092.7,2.802]
[1720526435900,0.33845633,3093.5,3092.8,0.06465678]
[1720526436446,0.33845633,3093.5,3092.9,2.34745672]
[1720526436817,10.72462992,3093.8,3092.9,2.2828]
[1720526436999,3.36462992,3093.8,3093.0,0.22828]
[1720526437433,3.36462992,3093.8,3093.1,0.06464595]
[1720526437739,3.36462992,3093.8,3093.0,0.22828]
[1720526438240,2.3789,3094.2,3093.0,0.22828]
[1720526438538,3.56089,3094.0,3093.0,0.22828]
[1720526440302,3.56089,3094.0,3093.1,0.06464603]
[1720526440543,7.36,3094.4,3093.2,2.2806]
[1720526440726,7.36,3094.4,3093.5,2.802]
[1720526440898,7.69847843,3094.4,3093.5,2.802]
[1720526441312,7.36,3094.4,3093.2,2.2806]
[1720526441902,0.55,3094.3,3093.2,2.2806]
[1720526442100,3.59824599,3094.6,3093.2,2.2806]
[1720526442325,0.6030146,3094.5,3093.2,2.2806]
[1720526442540,0.55,3094.4,3093.2,2.2806]
[1720526445942,0.6030146,3094.5,3093.2,2.2806]
[1720526446441,0.04824599,3094.4,3093.2,2.2806]
[1720526446763,2.371,3094.2,3092.5,2.4713]
[1720526446964,2.3124,3093.8,3091.9,2.802]
[1720526447164,0.04824599,3093.7,3091.6,2.53596877]
[1720526447576,0.55,3093.6,3091.6,2.53596877]
[1720526447877,0.04824599,3093.5,3091.9,2.802]
[1720526448053,8.357,3093.3,3091.1,0.0681927]
[1720526448258,0.37254599,3093.2,3091.2,3.13232327]
[1720526448583,1.7472546,3093.1,3091.3,0.3200516]
[1720526448766,0.04824599,3093.0,3091.3,0.3200516]
[1720526449077,0.57185338,3092.9,3091.3,0.3200516]
[1720526449421,2.38744599,3092.8,3091.3,0.3200516]
[1720526449679,0.59824599,3092.7,3091.3,0.3200516]
[1720526449846,0.5937446,3092.6,3091.3,0.3200516]
[1720526450047,0.55,3092.5,3091.3,0.3200516]
[1720526450984,3.0,3092.7,3091.6,2.802]
[1720526451169,5.3392,3092.8,3091.6,2.802]
[1720526451374,0.93610534,3092.7,3091.6,2.802]
[1720526451574,3.93610534,3092.7,3091.6,2.802]
[1720526451777,0.04824599,3092.6,3091.6,2.802]
[1720526452491,0.55,3092.5,3091.2,5.41062327]
[1720526453065,0.04824599,3092.4,3091.2,5.41062327]
[1720526453281,0.55,3092.3,3091.2,5.41062327]
[1720526454077,3.98435133,3092.7,3091.2,5.41062327]
[1720526454078,0.55,3092.6,3091.3,0.5478816]
[1720526455071,0.55,3092.6,3091.4,0.06468023]
[1720526455402,3.93610534,3092.7,3091.6,2.802]
[1720526455609,3.93610534,3092.7,3091.8,2.4966]
[1720526455769,0.93610534,3092.7,3091.9,0.06467304]
[1720526455970,0.39361053,3092.6,3091.8,2.4966]
[1720526456192,0.44185652,3092.6,3091.8,2.4966]
[1720526456499,0.04824599,3092.8,3091.2,5.1186]
[1720526456681,0.04824599,3092.8,3091.3,3.0]
[1720526457016,0.04824599,3092.8,3091.2,5.1186]
[1720526457017,2.8074,3092.7,3091.2,5.1186]
[1720526457208,3.0,3092.6,3091.2,5.1186]
[1720526457510,1.1355646,3092.5,3091.2,5.1186]
[1720526458119,1.1355646,3092.5,3091.6,2.802]
[1720526458320,3.02185338,3092.9,3091.7,2.37907507]
[1720526458612,3.02185338,3092.9,3091.7,2.3144]
[1720526458613,0.02185338,3092.9,3091.7,2.3144]
[1720526458822,0.88330872,3092.9,3091.8,0.57631371]
[1720526460007,0.55,3092.8,3091.8,0.57631371]
[1720526460819,0.02185338,3092.9,3091.8,0.51164]
[1720526460992,3.0,3093.2,3091.8,0.51164]
[1720526461191,3.0,3093.2,3091.9,0.28907086]
[1720526461192,1.036,3093.1,3091.9,0.28907086]
[1720526461392,3.55978947,3094.5,3092.0,5.31166699]
[1720526461393,7.36,3093.7,3092.0,5.31166699]
[1720526461592,0.2371,3094.1,3092.8,2.802]
[1720526461774,0.2371,3094.1,3092.9,0.06465316]
[1720526462177,0.2371,3094.1,3092.8,2.802]
[1720526462432,0.2371,3094.1,3092.7,2.445]
[1720526462726,0.07494417,3094.0,3092.5,3.0]
[1720526462927,0.04824599,3093.9,3092.5,3.0]
[1720526463098,0.04824599,3093.9,3092.2,2.4411]
[1720526463274,2.2852,3093.8,3092.2,2.4411]
[1720526463475,0.59824599,3093.7,3092.2,2.4411]
[1720526464001,3.59824599,3093.7,3092.2,2.4411]
[1720526464198,0.07494417,3094.0,3092.4,2.802]
[1720526464395,0.07494417,3094.0,3092.5,0.35131923]
[1720526464620,0.07494417,3094.0,3092.5,0.28666603]
[1720526465205,0.07494417,3094.0,3092.6,0.06465322]
[1720526466094,0.55,3093.9,3092.6,0.06465322]
[1720526466322,0.55,3093.9,3092.7,2.4222]
[1720526466528,0.55,3093.9,3092.8,0.31333759]
[1720526466695,0.55,3093.9,3092.8,3.11533759]
[1720526467233,0.07494417,3094.0,3092.8,3.11533759]
[1720526467584,0.07494417,3094.0,3092.9,0.06464528]
[1720526467888,0.07494417,3094.0,3092.8,3.05068532]
[1720526468090,0.07494417,3094.0,3092.9,0.55375306]
[1720526468903,0.07494417,3094.0,3093.0,0.0646453]
[1720526469526,0.07494417,3094.0,3093.1,2.4184]
[1720526469725,0.07494417,3094.0,3093.2,0.06464348]
[1720526471084,0.07494417,3094.0,3093.3,0.06464261]
[1720526471291,0.07494417,3094.0,3093.4,0.06464106]
[1720526471919,0.07494417,3094.0,3093.3,0.3129405]
[1720526472144,0.07494417,3094.0,3093.3,3.3129405]
[1720526475120,0.07494417,3094.0,3093.6,2.802]
[1720526476149,0.07494417,3094.0,3093.7,3.0]
[1720526476446,0.07494417,3094.0,3093.9,2.2775]
[1720526477905,7.36,3094.7,3093.9,2.2775]
[1720526478147,5.3795,3095.5,3093.9,2.34212708]
[1720526478148,7.36,3095.3,3093.9,2.34212708]
[1720526478366,3.55,3095.2,3093.9,2.34212708]
[1720526479539,3.55,3095.2,3094.0,2.802]
[1720526479869,4.641,3095.2,3094.1,0.5790398]
[1720526480626,4.641,3095.2,3094.1,0.51441271]
[1720526481294,4.68924599,3095.2,3093.9,2.2775]
[1720526481421,2.4583,3095.1,3093.5,2.3311]
[1720526481752,0.04824599,3095.0,3093.5,2.3311]
[1720526481925,0.55,3094.9,3093.5,2.3311]
[1720526482127,0.04824599,3094.8,3093.5,2.3311]
[1720526482327,0.04824599,3094.8,3093.6,0.23311]
[1720526482981,0.63718077,3094.7,3093.2,5.802]
[1720526483123,2.3737,3094.6,3093.2,2.802]
[1720526483350,0.59824599,3094.5,3093.2,2.802]
[1720526483800,3.59824599,3094.5,3093.2,2.802]
[1720526484003,0.8971946,3094.4,3093.2,2.802]
[1720526484208,0.04824599,3094.3,3093.2,2.802]
[1720526484490,0.55,3094.2,3093.2,2.802]
[1720526484798,0.04824599,3094.1,3093.2,2.802]
[1720526485013,0.04824599,3094.1,3092.4,2.4899]
[1720526485014,2.9343,3094.0,3092.4,2.4899]
[1720526485310,3.04824599,3093.9,3092.4,2.4899]
[1720526485491,0.55,3093.8,3092.4,2.4899]
[1720526485656,0.04824599,3093.7,3092.4,2.4899]
[1720526485854,0.55,3093.6,3092.4,2.4899]
[1720526486395,0.55,3093.6,3092.4,5.4899]
[1720526487297,0.55,3093.8,3092.4,5.4899]
[1720526487713,0.55,3093.8,3092.5,0.06466037]
[1720526488056,0.55,3093.8,3092.7,2.802]
[1720526489265,0.04824599,3093.7,3092.7,2.802]
[1720526489451,0.04824599,3093.7,3092.4,5.4899]
[1720526489655,0.04824599,3093.7,3092.5,0.54899]
[1720526489894,0.04824599,3093.7,3092.5,3.54899]
[1720526490096,0.55,3093.8,3092.5,0.54899]
[1720526491709,2.72283784,3094.0,3092.7,2.802]
[1720526494206,0.59824599,3093.9,3092.7,2.802]
[1720526494412,0.33210838,3093.8,3092.7,2.802]
[1720526494643,0.55,3093.7,3092.7,2.802]
[1720526494788,0.59824599,3093.7,3092.7,2.802]
[1720526495160,0.55,3093.7,3092.7,2.802]
[1720526497094,2.72283784,3094.0,3092.8,0.0646561]
[1720526497298,2.72283784,3094.0,3092.7,2.802]
[1720526497299,0.33853784,3094.0,3093.0,2.4637]
[1720526500095,0.33853784,3094.0,3093.1,2.802]
[1720526500308,0.33853784,3094.0,3093.2,0.06464379]
[1720526501115,0.33853784,3094.0,3093.3,0.06464389]
[1720526501404,0.33853784,3094.0,3093.4,2.2891]
[1720526501603,0.33853784,3094.0,3093.5,2.86663864]
[1720526502478,0.33853784,3094.0,3093.6,0.06463531]
[1720526503500,0.33853784,3094.0,3093.7,0.06463429]
[1720526504019,0.33853784,3094.0,3093.8,2.4934]
[1720526504202,0.33853784,3094.0,3093.9,0.25580343]
[1720526513289,0.33853784,3094.0,3093.9,3.05780343]
[1720526514070,0.33853784,3094.0,3093.9,6.05780343]
[1720526514275,0.71996737,3094.8,3093.9,6.05780343]
[1720526514585,0.33848907,3094.7,3093.9,6.05780343]
[1720526514786,0.33848907,3094.7,3094.0,0.57034172]
[1720526515809,2.4562,3094.6,3093.3,2.4262]
[1720526516013,0.72,3094.5,3093.3,2.4262]
[1720526516306,0.72,3094.5,3093.3,5.4262]
[1720526517178,0.72,3094.5,3093.6,2.802]
[1720526517386,0.33848907,3094.7,3093.6,2.802]
[1720526517586,0.33848907,3094.7,3093.7,0.2802]
[1720526518317,0.33848907,3094.7,3093.6,2.802]
[1720526518701,0.33848907,3094.7,3093.7,3.0]
[1720526519021,0.04824599,3094.6,3093.7,3.0]
[1720526519221,0.04824599,3094.6,3093.6,2.802]
[1720526519394,2.4207,3094.5,3093.3,5.4262]
[1720526519719,0.7200959,3094.4,3093.4,3.0]
[1720526520185,0.7200959,3094.4,3093.3,5.4262]
[1720526520885,2.4207,3094.5,3093.3,5.4262]
[1720526521086,0.72019609,3094.4,3093.3,5.4262]
[1720526521280,2.4207,3094.5,3093.3,5.4262]
[1720526522217,2.4207,3094.5,3093.6,2.802]
[1720526522382,0.33848907,3094.7,3093.6,2.802]
[1720526522589,1.05863753,3094.7,3093.6,2.802]
[1720526523691,1.10688352,3094.7,3093.6,2.802]
[1720526523927,2.2967,3094.6,3092.9,2.2746]
[1720526524086,2.2967,3094.4,3092.9,5.0766]
[1720526524285,2.2967,3094.2,3092.3,2.2746]
[1720526524526,3.61550761,3094.1,3092.5,2.802]
[1720526524728,1.08211238,3094.0,3092.5,2.802]
[1720526524954,0.59824599,3093.9,3092.5,2.802]
[1720526525115,1.31888038,3093.9,3092.5,2.802]
[1720526526135,1.31888038,3093.9,3092.6,3.0]
[1720526526727,1.27063439,3093.9,3092.6,3.0]
[1720526526930,0.46321852,3093.8,3092.6,3.5802]
[1720526527130,0.55,3093.7,3092.6,3.5802]
[1720526527354,0.55,3093.7,3092.6,0.5802]
[1720526527530,0.55,3093.7,3092.5,2.802]
[1720526527731,1.27061806,3093.7,3092.5,2.802]
[1720526528048,0.72061806,3093.6,3092.5,2.802]
[1720526528662,0.55,3093.7,3092.5,2.802]
[1720526528964,2.4852,3093.5,3092.5,2.802]
[1720526529260,2.4852,3093.5,3092.6,0.2802]
[1720526529569,0.72064521,3093.4,3092.6,0.2802]
[1720526530761,0.72068506,3093.4,3092.5,2.802]
[1720526532362,0.33853627,3093.7,3092.9,2.802]
[1720526532548,0.33853627,3093.7,3093.0,2.49285252]
[1720526532861,1.0590909,3093.7,3093.0,2.4282]
[1720526533022,0.33853627,3093.7,3093.0,2.4282]
[1720526533639,0.72055463,3094.1,3093.0,2.95122]
[1720526534026,0.72049579,3094.1,3093.0,2.95122]
[1720526534486,0.55,3094.0,3093.0,2.95122]
[1720526534626,0.55,3094.0,3093.0,2.4282]
[1720526536130,0.55,3094.0,3093.0,2.4928485]
[1720526536570,0.55,3094.0,3093.0,2.4282]
[1720526537454,1.2704841,3094.1,3093.0,2.4282]
[1720526537654,0.46090044,3094.0,3093.0,2.4282]
[1720526539187,0.46090044,3094.0,3093.1,0.06464974]
[1720526539481,0.46090044,3094.0,3093.0,2.49284866]
[1720526540677,0.46090044,3094.0,3093.0,2.4282]
[1720526541192,0.55,3093.9,3093.0,2.4282]
[1720526541479,2.32454599,3093.8,3092.7,5.1792]
[1720526541651,1.55792745,3093.7,3092.7,5.1792]
[1720526544055,0.72060783,3093.6,3092.7,5.1792]
[1720526544257,0.8374546,3093.7,3092.7,5.1792]
[1720526544258,1.55806243,3093.7,3092.7,5.1792]
[1720526544454,0.72061979,3093.6,3092.7,5.1792]
[1720526544670,1.55807439,3093.7,3092.7,5.69712]
[1720526545271,0.72060559,3093.6,3092.7,5.69712]
[1720526545472,1.55806019,3093.7,3092.7,5.69712]
[1720526545661,1.27060559,3093.7,3092.7,5.69712]
[1720526545874,0.72060559,3093.6,3092.7,5.69712]
[1720526546043,0.55,3093.7,3092.7,5.69712]
[1720526546365,0.55,3093.9,3092.8,0.06465573]
[1720526546555,0.72060559,3094.1,3092.7,5.69712]
[1720526546556,0.72060559,3094.1,3092.9,0.57617757]
[1720526547480,0.72051805,3094.1,3092.9,0.57617757]
[1720526547776,0.72051813,3094.1,3093.0,2.3919]
[1720526550789,5.4426,3094.2,3093.0,2.3919]
[1720526550949,0.72051671,3094.1,3093.0,2.3919]
[1720526551150,0.31631167,3094.0,3093.0,2.3919]
[1720526551465,1.03682838,3094.0,3093.0,2.3919]
[1720526553480,0.04824599,3093.9,3093.0,2.3919]
[1720526553689,0.59824599,3093.9,3093.0,2.3919]
[1720526554245,1.31885661,3093.9,3093.0,2.3919]
[1720526554487,0.88412745,3093.8,3093.0,2.3919]
[1720526554657,0.04824599,3093.7,3093.0,2.3919]
[1720526558853,0.16351683,3093.8,3093.0,2.3919]
[1720526559049,0.55,3093.7,3093.0,2.3919]
[1720526561253,0.72057678,3094.0,3093.1,2.86665606]
[1720526561560,0.72057678,3094.0,3093.3,2.4272]
[1720526561780,0.72057678,3094.3,3093.3,2.49184757]
[1720526561981,1.059113,3094.3,3093.3,2.4272]
[1720526562191,0.33853622,3094.3,3093.3,3.00917032]
[1720526562491,0.55,3094.2,3093.3,3.00917032]
[1720526562854,0.55,3094.2,3093.3,2.4272]
[1720526566774,0.04824599,3094.1,3093.3,2.4272]
[1720526566966,0.55,3094.0,3093.3,2.4272]
[1720526567171,0.04824599,3093.9,3093.3,2.4272]
[1720526567401,0.55,3094.0,3093.3,2.4272]
[1720526568067,0.04824599,3093.9,3093.3,2.4272]
[1720526568607,0.55,3094.0,3093.3,2.4272]
[1720526568817,0.55,3094.0,3093.4,1.166]
[1720526571079,0.55,3094.0,3093.6,1.166]
[1720526571522,0.55,3094.1,3093.6,1.166]
[1720526573824,1.27048577,3094.2,3093.6,1.166]
[1720526574023,0.79736519,3094.1,3093.6,1.166]
[1720526574185,0.55,3094.0,3093.6,1.166]
[1720526574381,1.27048577,3094.0,3093.6,1.166]
[1720526574786,0.72049849,3093.9,3093.6,1.166]
[1720526575024,1.27049849,3094.0,3093.6,1.166]
[1720526575230,0.20678637,3093.9,3093.6,1.166]
[1720526576311,0.20678637,3093.9,3093.4,1.166]
[1720526580193,0.55,3093.8,3093.4,1.166]
[1720526580393,0.04824599,3093.7,3093.3,2.4272]
[1720526580622,0.55,3093.8,3093.4,1.166]
[1720526581397,0.55,3093.8,3093.6,1.166]
[1720526581593,1.27057563,3093.9,3093.6,1.166]
[1720526581817,0.72057563,3093.8,3093.6,1.166]
[1720526582014,0.55,3093.9,3093.6,1.166]
[1720526582227,1.27057563,3094.1,3093.6,1.166]
[1720526582430,0.42705756,3094.0,3093.6,1.166]
[1720526582729,0.55,3093.9,3093.6,1.166]
[1720526583091,1.27057563,3093.9,3093.6,1.166]
[1720526583296,0.72057563,3093.8,3093.6,1.166]
[1720526583732,0.55,3093.9,3093.6,1.166]
[1720526583911,0.71976332,3093.9,3093.6,1.166]
[1720526585815,0.72048666,3094.1,3093.9,2.4519]
[1720526586298,0.72048666,3094.2,3093.9,2.4519]
[1720526586502,0.72048666,3094.3,3094.0,1.166]
[1720526586740,0.55,3094.2,3094.0,1.166]
[1720526587045,0.55,3094.3,3094.0,1.166]
[1720526587698,1.27035193,3094.4,3094.0,1.166]
[1720526587899,0.46107103,3094.3,3094.0,1.166]
[1720526588131,0.72035179,3094.4,3094.0,1.166]
[1720526588351,0.72035179,3094.5,3094.2,1.166]
[1720526588552,3.72035179,3094.6,3094.2,1.166]
[1720526588773,0.72035179,3094.5,3094.2,1.166]
[1720526589323,0.72035179,3094.5,3094.0,1.166]
[1720526589559,1.41538697,3094.5,3094.0,1.166]
[1720526590961,0.72024589,3094.4,3094.0,1.166]
[1720526591259,1.46352706,3094.5,3093.7,1.166]
[1720526591460,0.04824599,3094.3,3093.3,1.166]
[1720526591824,0.55,3094.2,3093.3,1.166]
[1720526592032,0.04824599,3094.1,3093.3,1.166]
[1720526592344,1.27024589,3094.2,3093.6,2.3957]
[1720526593373,1.27024589,3094.2,3093.7,1.166]
[1720526593590,0.42702459,3094.1,3093.7,1.166]
[1720526593804,0.55,3094.0,3093.7,1.166]
[1720526595365,0.55,3094.0,3093.6,2.3957]
[1720526595962,0.55,3094.0,3093.5,1.166]
[1720526596296,0.42702459,3094.1,3093.7,1.166]
[1720526597699,0.42702459,3094.1,3093.8,2.3494]
[1720526597867,0.72047881,3094.2,3093.8,2.3494]
[1720526598054,0.55,3094.1,3093.8,2.3494]
[1720526598255,0.55,3094.1,3093.7,1.166]
[1720526599404,2.894,3094.1,3093.7,1.166]
[1720526599575,0.7204801,3094.0,3093.7,1.166]
[1720526599777,0.7204801,3094.0,3093.2,2.3948]
[1720526599778,1.08192811,3094.0,3093.5,1.166]
[1720526600502,0.55,3093.9,3093.5,1.166]
[1720526601072,1.27049097,3093.9,3093.5,1.166]
[1720526601280,0.72049097,3093.8,3093.5,1.166]
[1720526601685,0.55,3093.9,3093.5,1.166]
[1720526603103,0.9475939,3093.9,3093.5,1.166]
[1720526603885,0.55,3093.9,3093.5,1.166]
[1720526604199,0.55,3093.9,3092.8,3.0]
[1720526604200,1.27049097,3093.9,3093.7,3.5971]
[1720526604402,0.72049097,3093.8,3093.7,3.5971]
[1720526604615,3.0,3094.3,3093.7,3.5971]
[1720526604923,0.72048743,3094.2,3093.7,3.5971]
[1720526605131,2.25229444,3094.2,3093.7,3.5971]
[1720526605282,0.72048743,3094.1,3093.7,1.166]
[1720526605632,0.72048743,3094.1,3092.8,3.0]
[1720526605633,0.59824599,3094.0,3093.5,1.166]
[1720526605988,0.59824599,3094.0,3093.3,1.166]
[1720526606207,0.82830003,3094.0,3093.3,1.166]
[1720526608881,3.0,3093.8,3092.4,2.2596]
[1720526609207,6.18630003,3094.0,3092.4,2.2596]
[1720526609208,7.53062992,3093.4,3092.4,2.2596]
[1720526609392,1.166,3093.2,3091.8,2.2596]
[1720526609600,1.166,3093.2,3091.4,2.2596]
[1720526609601,1.166,3092.8,3091.4,2.2596]
[1720526609784,4.57887591,3092.8,3091.8,1.166]
[1720526609985,4.27057258,3092.7,3091.8,1.166]
[1720526610185,4.72057258,3092.6,3091.8,1.166]
[1720526610480,2.10148901,3092.5,3091.8,1.166]
[1720526610684,2.10148901,3092.5,3091.4,2.2596]
[1720526610685,0.72057258,3092.4,3091.4,2.2596]
[1720526610898,0.55,3092.3,3091.4,2.2596]
[1720526612502,1.27126003,3092.6,3091.4,2.2596]
[1720526612702,0.72126003,3092.5,3091.4,2.2596]
[1720526612898,0.55,3092.4,3091.4,2.2596]
[1720526613241,0.55,3092.6,3091.4,2.2596]
[1720526613404,0.5885917,3092.7,3091.4,2.2596]
[1720526614490,1.3098606,3092.7,3091.4,2.2596]
[1720526614703,0.7212689,3092.6,3091.4,2.2596]
[1720526615029,2.86134599,3092.5,3091.4,2.2596]
[1720526615239,4.0074035,3092.4,3091.4,2.2596]
[1720526615401,0.76951489,3092.3,3091.4,2.2596]
[1720526615602,0.59824599,3092.2,3091.4,2.2596]
[1720526617302,0.59824599,3092.2,3091.1,0.0681927]
[1720526617922,4.0,3092.1,3091.1,0.0681927]
[1720526618129,4.77960374,3092.0,3091.1,0.0681927]
[1720526618343,0.72153315,3091.9,3091.1,0.0681927]
[1720526618508,0.55,3091.8,3091.1,0.0681927]
[1720526618932,0.59824599,3091.8,3091.1,0.0681927]
[1720526619349,0.04824599,3091.7,3091.1,0.0681927]
[1720526619650,0.55,3091.6,3091.1,0.0681927]
[1720526619806,0.04824599,3091.5,3091.1,0.0681927]